bitfinex-derivatives/quotes_SOLF0:USTF0_20250109
["timestamp","ask_amount","ask_price","bid_price","bid_amount"]
[1736453144935,2.6848,186.28,186.23,2.6854]
[1736453145338,2.6846,186.3,186.19,4.6317]
[1736453145536,32.39659422,186.31,186.19,4.6317]
[1736453147034,32.39659422,186.28,186.19,3.1245]
[1736453147241,32.39659422,186.28,186.13,1.5397]
[1736453147439,2.6858,186.21,186.16,2.6865]
[1736453147634,32.39659422,186.22,186.11,3.1676]
[1736453147834,35.08319422,186.16,186.09,2.6874]
[1736453148029,32.39659422,186.16,186.06,1.5397]
[1736453149035,32.39659422,186.16,186.03,3.1676]
[1736453149442,2.6871,186.12,186.03,3.1676]
[1736453149636,32.39659422,186.13,186.03,3.1676]
[1736453150038,6.94,186.14,186.03,3.1676]
[1736453150343,6.94,186.14,186.03,35.56419422]
[1736453150544,6.94,186.18,186.03,35.56419422]
[1736453150739,2.6864,186.17,186.11,2.6871]
[1736453151043,6.94,186.18,186.06,32.39659422]
[1736453151344,9.6263,186.18,186.13,2.6869]
[1736453151733,6.94,186.18,186.06,32.39659422]
[1736453152240,6.92,186.24,186.09,32.39659422]
[1736453152439,6.92,186.26,186.12,32.39659422]
[1736453152642,6.92,186.26,186.13,1.4942]
[1736453153034,6.92,186.26,186.22,2.6856]
[1736453153534,2.6846,186.29,186.24,2.6853]
[1736453155946,32.39659422,186.31,186.15,39.76736525]
[1736453156145,32.39659422,186.31,186.15,7.37077103]
[1736453156448,2.6852,186.25,186.2,2.6858]
[1736453156846,2.685,186.27,186.21,2.6856]
[1736453157047,32.39659422,186.31,186.14,8.86637103]
[1736453157842,32.39659422,186.31,186.16,7.37077103]
[1736453158647,32.39659422,186.31,186.15,29.48308413]
[1736453159045,2.6849,186.27,186.23,2.6855]
[1736453159249,32.39659422,186.31,186.15,29.48308413]
[1736453159743,32.39659422,186.31,186.18,7.37077103]
[1736453159942,32.39659422,186.28,186.18,7.37077103]
[1736453160448,2.6849,186.27,186.21,2.6858]
[1736453160638,2.6849,186.27,186.18,7.37077103]
[1736453161041,2.6849,186.27,186.21,2.6856]
[1736453161550,32.39659422,186.28,186.2,2.6859]
[1736453161753,32.39659422,186.28,186.19,4.73712535]
[1736453161946,32.39659422,186.28,186.16,29.48308413]
[1736453162451,32.39659422,186.31,186.16,29.48308413]
[1736453162745,32.39659422,186.31,186.17,44.50502435]
[1736453163142,32.39659422,186.39,186.2,32.39659422]
[1736453163347,19.92728722,186.38,186.22,19.92728722]
[1736453163548,19.92728722,186.38,186.23,1.6385]
[1736453163949,19.92728722,186.38,186.24,1.5899]
[1736453164242,19.92728722,186.35,186.24,1.5899]
[1736453164446,19.92728722,186.38,186.24,6.3275591]
[1736453164948,19.92728722,186.38,186.28,2.6847]
[1736453165147,19.92728722,186.38,186.24,6.3275591]
[1736453165342,2.6841,186.33,186.29,2.6846]
[1736453165546,32.38869464,186.36,186.24,1.5899]
[1736453165845,32.38869464,186.36,186.3,2.6844]
[1736453166151,32.38869464,186.36,186.24,1.5899]
[1736453166346,32.38869464,186.39,186.24,1.5899]
[1736453166551,6.8,186.41,186.24,1.5899]
[1736453166552,2.683,186.41,186.26,32.38869464]
[1736453166850,32.38869464,186.42,186.26,32.38869464]
[1736453167646,32.38869464,186.42,186.34,2.6837]
[1736453168149,6.8,186.45,186.24,8.96067103]
[1736453168150,32.38869464,186.36,186.24,8.96067103]
[1736453168539,32.38869464,186.39,186.24,8.96067103]
[1736453168744,32.38869464,186.42,186.26,32.38869464]
[1736453169253,2.683,186.4,186.26,32.38869464]
[1736453169550,2.683,186.4,186.29,32.38869464]
[1736453169750,32.38869464,186.45,186.29,32.38869464]
[1736453169949,2.6829,186.41,186.29,32.38869464]
[1736453170253,2.6829,186.41,186.3,1.5107]
[1736453170550,32.38869464,186.45,186.3,1.5107]
[1736453171050,32.38869464,186.42,186.3,1.5107]
[1736453171451,32.38869464,186.45,186.3,1.5107]
[1736453171747,2.6829,186.41,186.36,2.6836]
[1736453171949,39.12869464,186.48,186.32,32.38869464]
[1736453172147,2.682,186.47,186.42,2.6826]
[1736453172344,32.38869464,186.48,186.33,1.6427]
[1736453172546,32.38869464,186.45,186.33,1.6427]
[1736453172749,32.38869464,186.45,186.38,2.6832]
[1736453172942,32.38869464,186.48,186.33,1.6427]
[1736453173148,32.38869464,186.48,186.34,1.5642]
[1736453173550,2.6823,186.45,186.34,1.5642]
[1736453173945,32.38869464,186.48,186.34,1.5642]
[1736453174150,35.07059464,186.48,186.34,1.5642]
[1736453174453,32.38869464,186.48,186.34,1.5642]
[1736453175351,2.6826,186.44,186.38,2.6833]
[1736453175551,32.38869464,186.42,186.3,1.5107]
[1736453176055,32.38869464,186.39,186.24,3.1711]
[1736453176357,32.38869464,186.39,186.25,1.5288]
[1736453176556,2.6838,186.35,186.3,2.6843]
[1736453176758,32.38869464,186.36,186.25,1.5288]
[1736453176955,35.07239464,186.36,186.31,2.6843]
[1736453177153,32.38869464,186.39,186.25,1.5288]
[1736453177553,32.38869464,186.39,186.32,2.6841]
[1736453177857,32.38869464,186.39,186.25,1.5288]
[1736453178058,2.6835,186.37,186.32,2.684]
[1736453178851,32.38869464,186.39,186.25,1.5288]
[1736453179050,6.7,186.42,186.29,32.38869464]
[1736453179255,32.38869464,186.48,186.32,32.38869464]
[1736453179454,32.38869464,186.48,186.42,2.6827]
[1736453179750,32.38869464,186.51,186.35,32.38869464]
[1736453179948,2.6817,186.49,186.45,2.6823]
[1736453180156,39.06869464,186.51,186.45,2.6823]
[1736453180353,39.06869464,186.51,186.37,1.5471]
[1736453180549,2.6817,186.5,186.45,2.6822]
[1736453181555,2.6818,186.49,186.45,2.6822]
[1736453183161,2.682,186.48,186.43,2.6825]
[1736453183461,32.38869464,186.51,186.43,2.6825]
[1736453183959,2.6818,186.49,186.45,2.6823]
[1736453184351,2.6815,186.51,186.47,2.682]
[1736453184760,32.38869464,186.54,186.38,32.38869464]
[1736453185159,39.04869464,186.57,186.41,32.38869464]
[1736453185353,32.38869464,186.57,186.41,32.38869464]
[1736453185555,2.6813,186.53,186.41,32.38869464]
[1736453186260,2.6813,186.53,186.48,2.6817]
[1736453187364,19.89629805,186.52,186.37,21.44339805]
[1736453187556,19.89629805,186.49,186.37,1.5471]
[1736453187760,19.89629805,186.46,186.36,3.1401]
[1736453188465,19.89629805,186.46,186.39,2.6832]
[1736453188765,19.89629805,186.46,186.36,3.1401]
[1736453189362,2.6824,186.45,186.4,2.683]
[1736453189572,2.6824,186.45,186.36,3.1401]
[1736453189967,2.6824,186.45,186.4,2.6829]
[1736453190162,2.6827,186.43,186.36,3.1401]
[1736453190368,32.34773646,186.45,186.32,1.6346]
[1736453190868,2.6828,186.42,186.37,2.6834]
[1736453191873,2.6828,186.42,186.32,1.6346]
[1736453192370,32.34773646,186.48,186.32,1.6346]
[1736453192569,32.34773646,186.48,186.32,33.98233646]
[1736453193073,32.34773646,186.48,186.39,2.683]
[1736453193569,2.6824,186.45,186.4,2.683]
[1736453194073,32.34773646,186.51,186.35,32.34773646]
[1736453194275,32.34773646,186.54,186.38,32.34773646]
[1736453194663,2.6813,186.53,186.48,2.6818]
[1736453194874,2.6813,186.53,186.38,32.34773646]
[1736453195071,2.6813,186.53,186.41,32.34773646]
[1736453195268,2.6813,186.53,186.42,4.6032]
[1736453196268,2.6813,186.53,186.48,2.6818]
[1736453196769,32.34773646,186.54,186.42,4.6032]
[1736453197268,32.34773646,186.54,186.42,3.1084]
[1736453197875,2.6813,186.53,186.48,2.6818]
[1736453199771,2.6813,186.53,186.49,2.6817]
[1736453201276,2.6816,186.5,186.46,2.6821]
[1736453201573,32.34773646,186.54,186.42,3.1084]
[1736453201778,32.34773646,186.51,186.39,8.86557103]
[1736453201970,32.34773646,186.48,186.39,7.37077103]
[1736453202170,32.34773646,186.45,186.39,7.37077103]
[1736453202376,32.34773646,186.45,186.37,7.37077103]
[1736453202579,2.6827,186.43,186.38,2.6832]
[1736453202779,2.6827,186.43,186.37,7.37077103]
[1736453203378,2.6827,186.43,186.34,2.6838]
[1736453203571,2.6827,186.43,186.31,1.5457]
[1736453203975,32.34773646,186.45,186.31,1.5457]
[1736453204171,32.34773646,186.42,186.31,1.5457]
[1736453204475,2.6835,186.38,186.34,2.6839]
[1736453204672,2.6835,186.38,186.31,1.5457]
[1736453205075,2.6835,186.38,186.33,2.684]
[1736453205274,2.6835,186.37,186.33,2.684]
[1736453205476,32.34773646,186.36,186.26,8.89687103]
[1736453205675,2.6847,186.29,186.26,7.37077103]
[1736453205872,32.34773646,186.3,186.26,7.37077103]
[1736453206179,32.34773646,186.3,186.24,7.37077103]
[1736453206774,32.34773646,186.33,186.26,2.685]
[1736453207082,2.6848,186.28,186.17,3.1533]
[1736453207674,2.6851,186.26,186.17,3.1533]
[1736453208580,2.6849,186.27,186.21,2.6858]
[1736453208779,32.34773646,186.27,186.17,3.1533]
[1736453209775,32.34773646,186.24,186.15,2.6865]
[1736453209975,32.34773646,186.24,186.1,1.6265]
[1736453210277,32.34773646,186.24,186.15,2.6865]
[1736453210479,32.34773646,186.21,186.1,1.6265]
[1736453210878,2.6862,186.18,186.12,2.6871]
[1736453211377,2.6865,186.16,186.1,1.6265]
[1736453211583,32.34773646,186.18,186.02,54.46004956]
[1736453211783,32.34773646,186.18,186.03,3.2389]
[1736453211985,2.6867,186.15,186.08,2.6875]
[1736453212289,32.34773646,186.18,186.03,3.2389]
[1736453213675,32.34773646,186.15,186.03,3.2389]
[1736453214179,2.6874,186.1,186.03,5.9271]
[1736453214386,2.6874,186.1,186.03,3.2389]
[1736453214785,41.57493646,186.12,186.04,2.6882]
[1736453215277,6.54,186.12,186.06,2.6878]
[1736453216582,6.54,186.12,185.97,5.74871555]
[1736453216785,19.97810561,186.08,185.97,5.74871555]
[1736453217191,22.66590561,186.08,186.01,2.6886]
[1736453217682,22.66590561,186.08,186.02,2.6884]
[1736453217881,19.97810561,186.11,185.95,4.5352]
[1736453218888,19.97810561,186.08,185.95,4.5352]
[1736453219188,2.6879,186.06,186.0,32.6888]
[1736453219782,2.6883,186.04,186.0,30.0]
[1736453219990,19.97810561,186.05,186.0,30.0]
[1736453220396,19.97810561,186.02,185.89,1.6322]
[1736453220583,6.52,186.01,185.89,1.6322]
[1736453221789,2.6892,185.98,185.92,2.6898]
[1736453222289,6.52,186.01,185.89,1.6322]
[1736453222483,6.52,186.01,185.85,23.15100561]
[1736453222484,2.6896,185.95,185.85,23.15100561]
[1736453222788,19.97810561,185.99,185.85,3.1729]
[1736453222983,19.97810561,185.96,185.85,3.1729]
[1736453223388,2.6903,185.9,185.84,2.6911]
[1736453223789,6.5,185.92,185.8,1.613]
[1736453223995,19.97810561,185.96,185.82,19.97810561]
[1736453224197,6.5,185.95,185.82,19.97810561]
[1736453224887,2.6895,185.96,185.82,19.97810561]
[1736453225192,6.48,185.98,185.82,19.97810561]
[1736453225987,19.97810561,185.96,185.86,2.6907]
[1736453226295,19.97810561,185.93,185.8,1.613]
[1736453226593,2.6902,185.91,185.83,2.6911]
[1736453226790,19.97810561,185.9,185.8,1.613]
[1736453226988,6.5,185.89,185.76,3.1838]
[1736453227593,6.5,185.89,185.76,23.16190561]
[1736453228590,2.6906,185.88,185.76,23.16190561]
[1736453228892,19.97810561,185.87,185.76,3.1838]
[1736453229595,6.5,185.89,185.76,3.1838]
[1736453231394,2.6914,185.83,185.78,2.692]
[1736453231595,19.97810561,185.87,185.76,3.1838]
[1736453231990,19.97810561,185.87,185.78,2.6918]
[1736453231991,2.6914,185.83,185.78,2.6918]
[1736453232291,19.97810561,185.87,185.76,3.1838]
[1736453232686,2.6914,185.82,185.77,2.692]
[1736453232886,19.97810561,185.87,185.76,3.1838]
[1736453233091,2.6908,185.86,185.81,2.6915]
[1736453233288,6.46,185.89,185.76,3.1838]
[1736453233490,26.43810561,185.9,185.76,3.1838]
[1736453233893,19.97810561,185.87,185.76,3.1838]
[1736453234092,19.97810561,185.84,185.76,3.1838]
[1736453234492,19.97810561,185.87,185.76,3.1838]
[1736453234988,22.66890561,185.87,185.79,2.6918]
[1736453235195,19.97810561,185.87,185.76,3.1838]
[1736453235687,19.97810561,185.87,185.75,1.5156]
[1736453236090,2.6913,185.83,185.78,2.6919]
[1736453236399,2.6913,185.83,185.75,1.5156]
[1736453236592,2.6913,185.83,185.77,2.6921]
[1736453236797,2.6911,185.85,185.75,1.5156]
[1736453237291,6.42,185.89,185.75,1.5156]
[1736453237689,2.6913,185.83,185.78,2.692]
[1736453238095,19.97810561,185.86,185.75,1.5156]
[1736453238294,19.97810561,185.86,185.77,2.6921]
[1736453239397,2.6914,185.83,185.77,2.6921]
[1736453240395,2.6914,185.83,185.75,1.5156]
[1736453240600,2.6914,185.83,185.78,2.6919]
[1736453240997,19.97810561,185.89,185.75,1.5156]
[1736453241302,19.97810561,185.92,185.77,19.97810561]
[1736453241506,2.6902,185.91,185.82,2.6914]
[1736453241697,19.97810561,185.92,185.78,1.6272]
[1736453241698,26.35810561,185.92,185.78,1.6272]
[1736453242190,2.6909,185.86,185.78,1.6272]
[1736453242693,2.6909,185.86,185.81,2.6915]
[1736453243096,19.97810561,185.89,185.78,1.6272]
[1736453243303,26.35810561,185.92,185.85,2.6908]
[1736453243505,26.35810561,185.92,185.78,1.6272]
[1736453243695,19.97810561,185.86,185.78,1.6272]
[1736453245002,2.6912,185.84,185.8,2.6916]
[1736453245401,19.97810561,185.86,185.78,1.6272]
[1736453245602,19.97810561,185.89,185.78,1.6272]
[1736453245803,26.35810561,185.92,185.78,1.6272]
[1736453246201,19.97810561,185.89,185.78,1.6272]
[1736453246398,26.35810561,185.92,185.78,1.6272]
[1736453246598,26.33810561,185.92,185.78,1.6272]
[1736453247003,2.6904,185.9,185.82,2.6914]
[1736453247202,26.33810561,185.92,185.78,1.6272]
[1736453247609,19.97810561,185.89,185.78,1.6272]
[1736453247999,2.6914,185.83,185.78,4.319]
[1736453248198,19.97810561,185.89,185.78,4.319]
[1736453248602,19.97810561,185.86,185.78,4.319]
[1736453249403,19.97810561,185.86,185.8,2.6916]
[1736453249611,19.97810561,185.86,185.75,1.5156]
[1736453250004,19.97810561,185.86,185.76,2.6922]
[1736453250215,19.97810561,185.86,185.75,1.5156]
[1736453250607,2.6917,185.81,185.77,2.6921]
[1736453250808,19.97810561,185.86,185.75,1.5156]
[1736453251807,19.97810561,185.83,185.75,1.5156]
[1736453252203,2.6913,185.83,185.75,1.5156]
[1736453252509,19.97810561,185.86,185.75,1.5156]
[1736453253310,2.6911,185.85,185.81,2.6915]
[1736453253616,19.97810561,185.86,185.75,8.88637103]
[1736453253915,2.6917,185.8,185.76,2.6922]
[1736453254115,2.6917,185.8,185.75,8.88637103]
[1736453254311,19.97810561,185.86,185.73,1.5915]
[1736453255403,19.97810561,185.86,185.74,4.74685602]
[1736453255604,2.6914,185.82,185.78,2.6919]
[1736453256213,2.6911,185.84,185.81,2.6915]
[1736453256430,19.97810561,185.89,185.75,12.11762705]
[1736453256659,19.97810561,185.86,185.75,12.11762705]
[1736453256809,2.6914,185.82,185.78,2.6919]
[1736453257114,19.97810561,185.86,185.78,2.6919]
[1736453257615,2.6914,185.82,185.78,2.6919]
[1736453258514,19.97810561,185.86,185.78,2.6919]
[1736453258707,2.6915,185.81,185.78,2.6919]
[1736453258911,19.97810561,185.86,185.77,29.48308413]
[1736453259107,2.6914,185.83,185.79,2.6918]
[1736453259311,19.97810561,185.86,185.76,29.48308413]
[1736453259509,19.97810561,185.89,185.82,2.6913]
[1736453260313,2.6909,185.86,185.82,2.6913]
[1736453263012,19.97810561,185.89,185.82,2.6913]
[1736453263216,2.691,185.85,185.82,2.6913]
[1736453263412,19.97810561,185.89,185.82,2.6913]
[1736453263618,83.98,185.93,185.8,29.48308413]
[1736453263819,83.98,185.93,185.81,3.1639]
[1736453264113,2.6903,185.9,185.81,3.1639]
[1736453264312,26.27810561,185.94,185.82,1.4981]
[1736453264313,19.97810561,185.94,185.82,1.4981]
[1736453264818,19.97810561,185.97,185.83,29.48308413]
[1736453265118,143.43498034,186.09,185.95,19.97810561]
[1736453265316,143.43498034,186.09,185.96,4.5625]
[1736453265809,19.97810561,186.07,185.96,4.5625]
[1736453266010,19.97810561,186.04,185.96,16.69761705]
[1736453266413,19.97810561,186.04,185.99,2.6889]
[1736453266716,19.97810561,186.04,185.96,16.69761705]
[1736453266717,19.97810561,186.04,185.96,4.5625]
[1736453267420,2.6884,186.03,185.97,2.6891]
[1736453267623,19.97810561,186.04,185.96,3.0362]
[1736453268317,19.97810561,186.04,185.97,2.6892]
[1736453268712,19.97810561,186.04,185.96,3.0362]
[1736453269516,19.97810561,186.01,185.91,1.653]
[1736453269717,19.97810561,186.04,185.91,1.653]
[1736453270222,2.6888,186.0,185.91,1.653]
[1736453270421,19.97810561,186.04,185.91,1.653]
[1736453270621,2.6888,186.0,185.91,1.653]
[1736453270820,19.97810561,186.04,185.91,1.653]
[1736453271021,6.22,186.01,185.91,1.653]
[1736453271227,19.97810561,186.04,185.96,2.6893]
[1736453271420,26.19810561,186.04,185.91,1.653]
[1736453272125,2.6884,186.03,185.97,2.6891]
[1736453272825,2.6887,186.01,185.95,2.6894]
[1736453273125,19.97810561,186.01,185.9,3.0849]
[1736453273425,2.6889,186.0,185.94,2.6896]
[1736453273720,105.4619,186.2,185.92,19.97810561]
[1736453273925,19.97810561,186.09,185.92,19.97810561]
[1736453274120,26.19810561,186.09,185.95,19.97810561]
[1736453274321,26.19810561,186.09,185.9,3.0849]
[1736453274322,26.19810561,186.09,185.92,19.97810561]
[1736453274927,19.97810561,186.03,185.9,3.0849]
[1736453275420,22.66650561,186.03,185.97,2.6891]
[1736453275618,19.97810561,186.06,185.9,3.0849]
[1736453276015,19.97810561,186.06,185.92,19.97810561]
[1736453276213,19.97810561,186.06,185.9,3.0849]
[1736453276619,2.6887,186.01,185.94,2.6895]
[1736453276824,2.6887,186.01,185.9,3.0849]
[1736453277214,19.97810561,186.03,185.9,3.0849]
[1736453277721,2.6889,186.0,185.92,2.6899]
[1736453277925,19.97810561,186.03,185.9,3.0849]
[1736453278925,2.6888,186.01,185.94,2.6896]
[1736453279223,19.97810561,186.06,185.9,3.0849]
[1736453279418,19.97810561,186.03,185.9,3.0849]
[1736453279614,2.6889,185.99,185.9,3.0849]
[1736453280230,6.2,186.01,185.9,3.0849]
[1736453280518,19.97810561,186.0,185.9,3.0849]
[1736453280724,19.97810561,185.97,185.86,1.5825]
[1736453280914,19.97810561,185.97,185.85,2.6909]
[1736453281415,19.97810561,185.97,185.8,24.63550561]
[1736453281416,19.97810561,185.97,185.86,2.6908]
[1736453282021,2.6897,185.94,185.86,2.6908]
[1736453282325,19.97810561,185.94,185.82,2.6913]
[1736453282523,6.22,185.93,185.8,4.6574]
[1736453282722,6.22,185.93,185.8,7.349]
[1736453283022,19.97810561,185.91,185.73,49.46118974]
[1736453283222,19.97810561,185.91,185.74,4.6969]
[1736453283627,19.97810561,185.88,185.74,4.6969]
[1736453284026,2.6914,185.82,185.77,2.692]
[1736453284224,19.97810561,185.88,185.74,3.0897]
[1736453284525,6.22,185.93,185.75,2.6924]
[1736453284526,2.6916,185.81,185.75,2.6924]
[1736453285527,2.6917,185.8,185.75,2.6924]
[1736453287126,6.24,185.87,185.74,3.0897]
[1736453287825,2.6913,185.83,185.74,3.0897]
[1736453288026,6.2,185.87,185.74,3.0897]
[1736453288627,19.97810561,185.79,185.71,1.6072]
[1736453288821,19.97810561,185.79,185.68,3.0971]
[1736453289622,2.6925,185.75,185.68,3.0971]
[1736453290332,2.6925,185.75,185.69,2.6933]
[1736453290626,2.6923,185.76,185.69,2.6933]
[1736453291232,26.35810561,185.79,185.68,1.5744]
[1736453291932,2.6926,185.75,185.68,4.2678]
[1736453292229,26.35810561,185.79,185.68,1.5744]
[1736453292627,9.0719,185.79,185.72,2.6928]
[1736453292825,19.97810561,185.82,185.68,1.5744]
[1736453293030,19.97810561,185.85,185.68,1.5744]
[1736453293527,19.97810561,185.79,185.68,1.5744]
[1736453294033,19.97810561,185.79,185.68,4.2677]
[1736453294232,19.97810561,185.79,185.68,1.5744]
[1736453294528,19.97810561,185.76,185.63,1.6369]
[1736453295229,19.97810561,185.79,185.7,2.6931]
[1736453295425,19.97810561,185.76,185.63,1.6369]
[1736453295626,19.97810561,185.73,185.61,3.2026]
[1736453295829,19.97810561,185.73,185.61,1.604]
[1736453296129,19.97810561,185.67,185.54,29.48308413]
[1736453296434,19.97810561,185.64,185.53,7.37077103]
[1736453296629,19.97810561,185.61,185.53,7.37077103]
[1736453296928,19.97810561,185.64,185.53,7.37077103]
[1736453297526,2.6946,185.6,185.54,2.6954]
[1736453297727,19.97810561,185.64,185.47,19.97810561]
[1736453298133,2.6952,185.56,185.5,2.6959]
[1736453298333,19.97810561,185.58,185.44,19.97810561]
[1736453298835,19.97810561,185.55,185.41,6.34]
[1736453299034,19.97810561,185.58,185.41,6.34]
[1736453299425,19.97810561,185.58,185.53,2.6956]
[1736453299629,19.97810561,185.58,185.41,6.34]
[1736453299828,19.97810561,185.58,185.41,19.97810561]
[1736453300033,19.97810561,185.58,185.42,3.1662]
[1736453301730,2.6953,185.55,185.49,2.6962]
[1736453301926,19.97810561,185.58,185.42,3.1662]
[1736453302129,19.97810561,185.52,185.42,1.6179]
[1736453302536,2.696,185.51,185.45,2.6967]
[1736453302942,19.97810561,185.52,185.42,1.6179]
[1736453303142,19.97810561,185.55,185.47,2.6965]
[1736453303347,19.97810561,185.58,185.42,1.6179]
[1736453303652,19.97810561,185.58,185.44,19.97810561]
[1736453303837,19.97810561,185.58,185.45,1.5889]
[1736453304341,22.67300561,185.58,185.52,2.6957]
[1736453305642,19.97810561,185.58,185.52,2.6957]
[1736453305846,19.97810561,185.58,185.45,1.5889]
[1736453306939,19.97810561,185.58,185.42,1.6179]
[1736453307137,19.97810561,185.55,185.42,1.6179]
[1736453308037,6.28,185.54,185.42,1.6179]
[1736453308445,2.6959,185.52,185.46,2.6965]
[1736453309343,2.6959,185.52,185.42,1.6179]
[1736453309549,2.6959,185.52,185.47,2.6965]
[1736453309749,8.9756,185.54,185.42,1.6179]
[1736453309950,6.28,185.54,185.47,2.6963]
[1736453310148,6.28,185.54,185.42,1.6179]
[1736453310849,2.6954,185.55,185.42,1.6179]
[1736453311045,6.26,185.56,185.42,1.6179]
[1736453311250,6.26,185.56,185.51,2.6959]
[1736453311448,6.26,185.56,185.42,1.6179]
[1736453311648,19.97810561,185.55,185.42,1.6179]
[1736453311846,2.6957,185.53,185.47,2.6963]
[1736453312149,2.6957,185.53,185.42,1.6179]
[1736453312351,19.97810561,185.55,185.45,2.6967]
[1736453312552,2.6959,185.51,185.38,21.52320561]
[1736453312751,2.6959,185.51,185.39,2.53947152]
[1736453312948,2.6959,185.51,185.39,1.5485]
[1736453313152,2.6957,185.53,185.4,0.99097667]
[1736453313354,19.97810561,185.55,185.41,19.97810561]
[1736453313853,2.6957,185.53,185.45,2.6967]
[1736453314054,2.6957,185.53,185.41,19.97810561]
[1736453314454,2.6958,185.52,185.41,19.97810561]
[1736453314653,2.6958,185.52,185.39,1.5485]
[1736453315853,2.6955,185.54,185.41,19.97810561]
[1736453316058,6.26,185.56,185.44,19.97810561]
[1736453316450,2.6954,185.55,185.49,2.696]
[1736453316646,6.26,185.57,185.44,19.97810561]
[1736453317051,2.6953,185.55,185.44,19.97810561]
[1736453318052,2.6953,185.55,185.5,2.6959]
[1736453318250,2.6949,185.58,185.44,19.97810561]
[1736453318556,6.24,185.63,185.5,19.97810561]
[1736453318747,2.6945,185.61,185.56,2.695]
[1736453318952,6.24,185.63,185.5,19.97810561]
[1736453319756,2.6946,185.6,185.55,2.6952]
[1736453319952,6.24,185.63,185.5,19.97810561]
[1736453320254,6.24,185.63,185.51,1.5303]
[1736453321755,2.6947,185.6,185.51,1.5303]
[1736453322260,6.24,185.63,185.51,1.5303]
[1736453322457,6.24,185.63,185.54,2.6953]
[1736453322657,6.24,185.63,185.47,19.97810561]
[1736453322856,19.97810561,185.61,185.47,19.97810561]
[1736453323365,19.97810561,185.61,185.51,2.6959]
[1736453323862,19.97810561,185.58,185.51,2.6959]
[1736453324263,2.6953,185.56,185.51,2.6959]
[1736453324562,2.6953,185.56,185.46,3.127]
[1736453325264,2.6951,185.57,185.46,3.127]
[1736453325663,19.97810561,185.61,185.46,3.127]
[1736453325864,19.97810561,185.61,185.47,19.97810561]
[1736453327067,19.97810561,185.61,185.47,27.34887664]
[1736453327360,2.6953,185.56,185.51,2.6959]
[1736453327561,22.35,185.63,185.47,7.37077103]
[1736453327763,19.97810561,185.55,185.47,7.37077103]
[1736453327965,6.16,185.54,185.47,7.37077103]
[1736453328164,6.16,185.54,185.46,41.06573907]
[1736453328165,2.6963,185.49,185.46,48.4365101]
[1736453329065,2.6963,185.49,185.45,2.6968]
[1736453329967,2.696,185.5,185.45,2.6968]
[1736453330468,2.6957,185.53,185.48,2.6962]
[1736453330667,6.16,185.54,185.44,29.48308413]
[1736453331063,2.6963,185.49,185.45,2.6967]
[1736453331269,19.97810561,185.52,185.44,29.48308413]
[1736453331666,2.6963,185.49,185.44,2.6968]
[1736453332164,2.6963,185.49,185.43,29.48308413]
[1736453332463,2.6963,185.49,185.45,2.6967]
[1736453332968,6.16,185.54,185.44,7.37077103]
[1736453333167,2.6956,185.53,185.44,7.37077103]
[1736453333569,2.6956,185.53,185.46,2.6965]
[1736453333775,2.696,185.51,185.44,7.37077103]
[1736453334070,6.14,185.54,185.44,7.37077103]
[1736453334271,6.14,185.54,185.47,4.76248399]
[1736453334864,2.6958,185.52,185.47,4.76248399]
[1736453335062,6.14,185.54,185.47,4.76248399]
[1736453335271,6.14,185.54,185.42,7.37077103]
[1736453335470,2.6962,185.49,185.42,7.37077103]
[1736453336169,2.6962,185.49,185.44,2.6968]
[1736453336372,2.6959,185.51,185.44,2.6968]
[1736453336563,19.97810561,185.52,185.44,2.6968]
[1736453336764,19.97810561,185.52,185.42,7.37077103]
[1736453337472,2.6966,185.47,185.42,2.6972]
[1736453337678,19.97810561,185.52,185.39,29.48308413]
[1736453338071,2.6963,185.48,185.44,2.6969]
[1736453338976,2.6963,185.48,185.39,7.37077103]
[1736453339273,2.6963,185.48,185.45,2.6967]
[1736453339473,2.6962,185.5,185.39,7.37077103]
[1736453339775,2.6962,185.5,185.46,2.6966]
[1736453340170,6.14,185.54,185.39,7.37077103]